fUST/lending_fUST_20240615
["ID","MTS","AMOUNT","RATE_DAILY","PERIOD"]
[329579488,1718457044447,-502.9462045,0.00016712,2]
[329579489,1718457044460,-500.0,0.00016712,2]
[329579490,1718457044487,-501.44520153,0.00016712,2]
[329579491,1718457044513,-504.66594726,0.00016712,2]
[329579492,1718457044526,-394.67507055,0.00016712,2]
[329579493,1718457044542,-500.0,0.00016712,2]
[329579494,1718457044552,-749.79,0.00016712,2]
[329579495,1718457044563,-540.36731926,0.00016712,2]
[329579496,1718457044575,-500.0,0.00016712,2]
[329579497,1718457044587,-500.0,0.00016712,2]
[329579498,1718457044614,-500.0,0.00016712,2]
[329579500,1718457044661,-500.0,0.00016712,2]
[329579501,1718457044684,-500.0,0.00016712,2]
[329579502,1718457044712,-505.8504904,0.00016712,2]
[329579503,1718457044723,-433.79502083,0.00016712,2]
[329579504,1718457044733,-669.041635,0.00016712,2]
[329579505,1718457044744,-669.041635,0.00016712,2]
[329579506,1718457044755,-669.041635,0.00016712,2]
[329579507,1718457044765,-669.041635,0.00016712,2]
[329579508,1718457044777,-500.0,0.00016712,2]
[329579509,1718457044805,-500.0,0.00016712,2]
[329579510,1718457044830,-500.0,0.00016712,2]
[329579511,1718457044853,-500.0,0.00016712,2]
[329579513,1718457044888,-979.32,0.00016712,2]
[329579514,1718457044913,-500.0,0.00016712,2]
[329579515,1718457044930,-691.64,0.00016712,2]
[329579516,1718457044954,-230.28402412,0.00016712,2]
[329579517,1718457044984,-500.0,0.00016712,2]
[329579518,1718457044996,-500.0,0.00016712,2]
[329579519,1718457045009,-500.0,0.00016712,2]
[329579520,1718457045040,-500.0,0.00016712,2]
[329579521,1718457045051,-500.0,0.00016712,2]
[329579522,1718457045098,-500.0,0.00016712,2]
[329579523,1718457045109,-500.0,0.00016712,2]
[329579524,1718457045124,-500.0,0.00016712,2]
[329579525,1718457045135,-500.0,0.00016712,2]
[329579526,1718457045146,-7149.35,0.00016712,2]
[329579527,1718457045160,-500.0,0.00016712,2]
[329579528,1718457045185,-3618.11,0.00016712,2]
[329579529,1718457045197,-1495.0,0.00016712,2]
[329579530,1718457045208,-500.0,0.00016712,2]
[329579531,1718457045243,-500.0,0.00016712,2]
[329579532,1718457045284,-599.35,0.00016712,2]
[329579533,1718457045328,-4721.27,0.00016712,2]
[329579534,1718457045352,-500.0,0.00016712,2]
[329579535,1718457045367,-500.0,0.00016712,2]
[329579536,1718457045384,-500.0,0.00016712,2]
[329579537,1718457045428,-500.0,0.00016712,2]
[329579538,1718457045439,-505.67910671,0.00016712,2]
[329579539,1718457045490,-500.0,0.00016712,2]
[329579540,1718457045521,-500.0,0.00016712,2]
[329579541,1718457045548,-500.0,0.00016712,2]
[329579542,1718457045560,-1628.27,0.00016712,2]
[329579543,1718457045579,-500.0,0.00016712,2]
[329579544,1718457045597,-500.0,0.00016712,2]
[329579545,1718457045608,-500.0,0.00016712,2]
[329579546,1718457045638,-500.0,0.00016712,2]
[329579547,1718457045655,-2206.45,0.00016712,2]
[329579548,1718457045669,-167.36305398,0.00016712,2]
[329579549,1718457045684,-500.0,0.00016712,2]
[329579550,1718457045706,-257.057799,0.00016712,2]
[329579551,1718457045724,-500.0,0.00016712,2]
[329579552,1718457045743,-257.057799,0.00016712,2]
[329579553,1718457045764,-500.0,0.00016712,2]
[329579554,1718457045784,-500.0,0.00016712,2]
[329579555,1718457045811,-500.0,0.00016712,2]
[329579556,1718457045831,-504.13,0.00016712,2]
[329579557,1718457045855,-500.0,0.00016712,2]
[329579558,1718457045872,-5259.6,0.00016712,2]
[329579559,1718457045888,-500.0,0.00016712,2]
[329579560,1718457045905,-436.06870708,0.00016712,2]
[329579561,1718457045917,-500.0,0.00016712,2]
[329579562,1718457045947,-500.0,0.00016712,2]
[329579563,1718457045973,-500.0,0.00016712,2]
[329579564,1718457045986,-577.94,0.00016712,2]
[329579565,1718457046002,-591.98,0.00016712,2]
[329579566,1718457046016,-1143.24,0.00016712,2]
[329579567,1718457046034,-500.0,0.00016712,2]
[329579568,1718457046060,-500.0,0.00016712,2]
[329579569,1718457046073,-500.0,0.00016712,2]
[329579570,1718457046098,-500.0,0.00016712,2]
[329579571,1718457046109,-500.0,0.00016712,2]
[329579572,1718457046128,-500.0,0.00016712,2]
[329579573,1718457046150,-573.432475,0.00016712,2]
[329579574,1718457046192,-500.0,0.00016712,2]
[329579575,1718457046208,-500.0,0.00016712,2]
[329579576,1718457046228,-500.0,0.00016712,2]
[329579577,1718457046239,-1488.37,0.00016712,2]
[329579578,1718457046257,-500.0,0.00016712,2]
[329579579,1718457046278,-500.0,0.00016712,2]
[329579580,1718457046292,-500.0,0.00016712,2]
[329579581,1718457046309,-372.99496141,0.00016712,2]
[329579582,1718457046322,-989.9,0.00016712,2]
[329579583,1718457046341,-584.32,0.00016712,2]
[329579584,1718457046352,-103930.59921246,0.000168,2]
[329579585,1718457046383,-669.041635,0.000168,2]
[329579586,1718457046397,-669.041635,0.000168,2]
[329579587,1718457046415,-257.057799,0.000168,2]
[329579588,1718457046426,-257.057799,0.000168,2]
[329579589,1718457046442,-257.057799,0.000168,2]
[329579590,1718457046457,-257.057799,0.000168,2]
[329579591,1718457046472,-2745.56,0.000169,2]
[329579592,1718457046484,-500.0,0.00016986,2]
[329579593,1718457046495,-605.26,0.00016986,2]
[329579594,1718457046509,-500.0,0.00016986,2]
[329579595,1718457046521,-500.0,0.00016986,2]
[329579596,1718457046557,-500.0,0.00016986,2]
[329579597,1718457046571,-214.18369572,0.00016986,2]
[329579598,1718457046619,-988.79,0.00016986,2]
[329579599,1718457046641,-500.0,0.00016986,2]
[329579600,1718457046662,-500.0,0.00016986,2]
[329579601,1718457046681,-627.8,0.00016986,2]
[329579602,1718457046700,-500.0,0.00016986,2]
[329579603,1718457046720,-749.79,0.00016986,2]
[329579604,1718457046731,-500.0,0.00016986,2]
[329579605,1718457046742,-669.041635,0.00016986,2]
[329579606,1718457046768,-669.041635,0.00016986,2]
[329579607,1718457046780,-500.0,0.00016986,2]
[329579608,1718457046804,-500.0,0.00016986,2]
[329579609,1718457046823,-979.32,0.00016986,2]
[329579610,1718457046849,-691.64,0.00016986,2]
[329579611,1718457046863,-500.0,0.00016986,2]
[329579612,1718457046881,-500.0,0.00016986,2]
[329579613,1718457046893,-7149.35,0.00016986,2]
[329579614,1718457046911,-500.0,0.00016986,2]
[329579615,1718457046923,-3618.11,0.00016986,2]
[329579616,1718457046978,-1495.0,0.00016986,2]
[329579617,1718457047007,-599.35,0.00016986,2]
[329579618,1718457047027,-4721.27,0.00016986,2]
[329579619,1718457047039,-500.0,0.00016986,2]
[329579620,1718457047051,-500.0,0.00016986,2]
[329579621,1718457047100,-500.0,0.00016986,2]
[329579622,1718457047112,-1628.27,0.00016986,2]
[329579623,1718457047123,-500.0,0.00016986,2]
[329579624,1718457047134,-2206.45,0.00016986,2]
[329579625,1718457047146,-500.0,0.00016986,2]
[329579626,1718457047164,-257.057799,0.00016986,2]
[329579627,1718457047189,-257.057799,0.00016986,2]
[329579628,1718457047244,-500.0,0.00016986,2]
[329579629,1718457047269,-504.13,0.00016986,2]
[329579633,1718457047333,-5259.6,0.00016986,2]
[329579636,1718457047350,-500.0,0.00016986,2]
[329579641,1718457047409,-577.94,0.00016986,2]
[329579643,1718457047430,-591.98,0.00016986,2]
[329579644,1718457047449,-1143.24,0.00016986,2]
[329579645,1718457047473,-500.0,0.00016986,2]
[329579646,1718457047485,-500.0,0.00016986,2]
[329579647,1718457047498,-500.0,0.00016986,2]
[329579648,1718457047513,-500.0,0.00016986,2]
[329579649,1718457047528,-500.0,0.00016986,2]
[329579650,1718457047546,-1488.37,0.00016986,2]
[329579651,1718457047558,-500.0,0.00016986,2]
[329579652,1718457047601,-500.0,0.00016986,2]
[329579653,1718457047653,-989.9,0.00016986,2]
[329579654,1718457047761,-584.32,0.00016986,2]
[329579655,1718457047773,-323.5556165,0.00016986,2]
[329579656,1718457047784,-1002.72217462,0.00017,2]
[329579657,1718457047803,-1000.0,0.00017,7]
[329579658,1718457047834,-500.0,0.00017,2]
[329579659,1718457047848,-738.29856049,0.000171,2]
[329579660,1718457047864,-197.331768,0.00017192,2]
[329579661,1718457047884,-171.587393,0.00017192,2]
[329579662,1718457047896,-500.0,0.0001726,2]
[329579663,1718457047909,-605.26,0.0001726,2]
[329579664,1718457047922,-500.0,0.0001726,2]
[329579665,1718457047941,-500.0,0.0001726,2]
[329579666,1718457047958,-500.0,0.0001726,2]
[329579667,1718457047971,-988.79,0.0001726,2]
[329579668,1718457047989,-500.0,0.0001726,2]
[329579669,1718457048005,-627.8,0.0001726,2]
[329579670,1718457048072,-500.0,0.0001726,2]
[329579671,1718457048085,-749.79,0.0001726,2]
[329579672,1718457048097,-199.56228201,0.0001726,2]
[329579673,1718457048132,-669.041635,0.0001726,2]
[329579674,1718457048168,-669.041635,0.0001726,2]
[329579675,1718457048188,-500.0,0.0001726,2]
[329579676,1718457048201,-500.0,0.0001726,2]
[329579677,1718457048225,-979.32,0.0001726,2]
[329579678,1718457048253,-691.64,0.0001726,2]
[329579679,1718457048274,-500.0,0.0001726,2]
[329579680,1718457048317,-500.0,0.0001726,2]
[329579681,1718457048346,-7149.35,0.0001726,2]
[329579682,1718457048358,-155.0,0.0001726,2]
[329579683,1718457048369,-3618.11,0.0001726,2]
[329579684,1718457048396,-1495.0,0.0001726,2]
[329579685,1718457048407,-599.35,0.0001726,2]
[329579686,1718457048428,-4721.27,0.0001726,2]
[329579687,1718457048440,-387.57158583,0.0001726,2]
[329579688,1718457048472,-500.0,0.0001726,2]
[329579689,1718457048484,-1628.27,0.0001726,2]
[329579690,1718457048502,-500.0,0.0001726,2]
[329579691,1718457048525,-2206.45,0.0001726,2]
[329579692,1718457048550,-500.0,0.0001726,2]
[329579693,1718457048565,-257.057799,0.0001726,2]
[329579695,1718457048577,-257.057799,0.0001726,2]
[329579697,1718457048587,-504.13,0.0001726,2]
[329579698,1718457048598,-5259.6,0.0001726,2]
[329579699,1718457048610,-500.0,0.0001726,2]
[329579700,1718457048628,-591.98,0.0001726,2]
[329579701,1718457048648,-577.94,0.0001726,2]
[329579702,1718457048668,-1143.24,0.0001726,2]
[329579703,1718457048679,-500.0,0.0001726,2]
[329579704,1718457048692,-500.0,0.0001726,2]
[329579705,1718457048704,-500.0,0.0001726,2]
[329579706,1718457048717,-500.0,0.0001726,2]
[329579707,1718457048733,-500.0,0.0001726,2]
[329579708,1718457048744,-1488.37,0.0001726,2]
[329579709,1718457048755,-500.0,0.0001726,2]
[329579710,1718457048768,-989.9,0.0001726,2]
[329579711,1718457048782,-584.32,0.0001726,2]
[329579712,1718457048796,-584.9466086,0.0001726,2]
[329579713,1718457048820,-153.0,0.0001726,2]
[329579714,1718457048831,-410.6106982,0.0001726,2]
[329579715,1718457048858,-155.0,0.0001743,2]
[329579716,1718457048871,-620.00033356,0.00017497,2]
[329579717,1718457048887,-500.0,0.000175,2]
[329579718,1718457048912,-500.0,0.00017534,2]
[329579719,1718457048944,-605.26,0.00017534,2]
[329579720,1718457048957,-500.0,0.00017534,2]
[329579721,1718457048976,-500.0,0.00017534,2]
[329579722,1718457048987,-500.0,0.00017534,2]
[329579723,1718457048998,-988.79,0.00017534,2]
[329579724,1718457049025,-500.0,0.00017534,2]
[329579725,1718457049051,-627.8,0.00017534,2]
[329579726,1718457049076,-500.0,0.00017534,2]
[329579727,1718457049086,-749.79,0.00017534,2]
[329579728,1718457049097,-669.041635,0.00017534,2]
[329579729,1718457049108,-669.041635,0.00017534,2]
[329579730,1718457049123,-500.0,0.00017534,2]
[329579731,1718457049149,-500.0,0.00017534,2]
[329579732,1718457049187,-979.32,0.00017534,2]
[329579733,1718457049208,-691.64,0.00017534,2]
[329579734,1718457049225,-500.0,0.00017534,2]
[329579735,1718457049238,-500.0,0.00017534,2]
[329579736,1718457049249,-7149.35,0.00017534,2]
[329579737,1718457049260,-3618.11,0.00017534,2]
[329579738,1718457049272,-1495.0,0.00017534,2]
[329579739,1718457049285,-599.35,0.00017534,2]
[329579740,1718457049300,-4721.27,0.00017534,2]
[329579741,1718457049311,-500.0,0.00017534,2]
[329579742,1718457049321,-1628.27,0.00017534,2]
[329579743,1718457049342,-2206.45,0.00017534,2]
[329579744,1718457049356,-500.0,0.00017534,2]
[329579745,1718457049367,-257.057799,0.00017534,2]
[329579746,1718457049382,-257.057799,0.00017534,2]
[329579747,1718457049395,-504.13,0.00017534,2]
[329579748,1718457049406,-5259.6,0.00017534,2]
[329579749,1718457049435,-500.0,0.00017534,2]
[329579750,1718457049472,-577.94,0.00017534,2]
[329579751,1718457049491,-591.98,0.00017534,2]
[329579752,1718457049506,-500.0,0.00017534,2]
[329579753,1718457049518,-1143.24,0.00017534,2]
[329579754,1718457049537,-500.0,0.00017534,2]
[329579755,1718457049560,-607.51797273,0.00017534,2]
[329579756,1718457049583,-500.0,0.00017534,2]
[329579757,1718457049595,-500.0,0.00017534,2]
[329579758,1718457049610,-1488.37,0.00017534,2]
[329579759,1718457049636,-500.0,0.00017534,2]
[329579760,1718457049649,-989.9,0.00017534,2]
[329579761,1718457049660,-584.32,0.00017534,2]
[329579762,1718457049671,-153.0,0.00017667,2]
[329579763,1718457049692,-153.0,0.00017667,2]
[329579764,1718457049703,-153.0,0.00017667,2]
[329579765,1718457049714,-153.0,0.00017667,2]
[329579766,1718457049736,-153.9779854,0.00017667,2]
[329579767,1718457049748,-153.0,0.00017667,2]
[329579768,1718457049765,-153.0,0.00017667,2]
[329579769,1718457049781,-153.0,0.00017667,2]
[329579770,1718457049808,-153.0,0.00017667,2]
[329579771,1718457049827,-153.0,0.00017667,2]
[329579772,1718457049838,-153.0,0.00017667,2]
[329579773,1718457049856,-153.0,0.00017667,2]
[329579774,1718457049876,-153.0,0.00017667,2]
[329579775,1718457049900,-500.0,0.00017808,2]
[329579776,1718457049919,-605.26,0.00017808,2]
[329579777,1718457049953,-500.0,0.00017808,2]
[329579778,1718457049964,-500.0,0.00017808,2]
[329579779,1718457049976,-500.0,0.00017808,2]
[329579780,1718457050002,-988.79,0.00017808,2]
[329579781,1718457050032,-500.0,0.00017808,2]
[329579782,1718457050050,-627.8,0.00017808,2]
[329579783,1718457050067,-500.0,0.00017808,2]
[329579784,1718457050099,-749.79,0.00017808,2]
[329579785,1718457050127,-669.041635,0.00017808,2]
[329579786,1718457050141,-669.041635,0.00017808,2]
[329579787,1718457050158,-200.0,0.00017808,2]
[329579788,1718457050184,-500.0,0.00017808,2]
[329579789,1718457050195,-979.32,0.00017808,2]
[329579790,1718457050207,-691.64,0.00017808,2]
[329579791,1718457050219,-500.0,0.00017808,2]
[329579792,1718457050235,-500.0,0.00017808,2]
[329579793,1718457050280,-7149.35,0.00017808,2]
[329579794,1718457050292,-3618.11,0.00017808,2]
[329579795,1718457050305,-1495.0,0.00017808,2]
[329579796,1718457050317,-599.35,0.00017808,2]
[329579797,1718457050348,-4721.27,0.00017808,2]
[329579798,1718457050366,-500.0,0.00017808,2]
[329579799,1718457050396,-1628.27,0.00017808,2]
[329579800,1718457050407,-2206.45,0.00017808,2]
[329579801,1718457050427,-500.0,0.00017808,2]
[329579802,1718457050437,-257.057799,0.00017808,2]
[329579803,1718457050474,-257.057799,0.00017808,2]
[329579804,1718457050484,-504.13,0.00017808,2]
[329579805,1718457050508,-5259.6,0.00017808,2]
[329579806,1718457050533,-500.0,0.00017808,2]
[329579807,1718457050545,-577.94,0.00017808,2]
[329579808,1718457050556,-591.98,0.00017808,2]
[329579809,1718457050567,-500.0,0.00017808,2]
[329579810,1718457050579,-1143.24,0.00017808,2]
[329579811,1718457050609,-311.8099095,0.00017808,2]
[329579812,1718457050769,-188.1900905,0.00017808,2]
[329579813,1718457050784,-357.68554522,0.00017808,2]
[329579814,1718457050900,10000.0,0.00025,60]
[329579815,1718457051207,-500.0,0.00016438,2]
[329579816,1718457051219,-500.0,0.00016438,2]
[329579817,1718457051231,-500.0,0.00016712,2]
[329579818,1718457051250,-500.0,0.00016986,2]
[329579819,1718457051286,-500.0,0.0001726,2]
[329579820,1718457051313,-500.0,0.00017534,2]
[329579821,1718457051335,-142.31445478,0.00017808,2]
[329579822,1718457051346,-500.0,0.00017808,2]
[329579823,1718457051369,-1488.37,0.00017808,2]
[329579824,1718457051429,-500.0,0.00017808,2]
[329579825,1718457051444,-989.9,0.00017808,2]
[329579826,1718457051458,-584.32,0.00017808,2]
[329579827,1718457051469,-306.9737281,0.00017808,2]
[329579828,1718457051483,-1161.07420712,0.00018,13]
[329579829,1718457052329,-7693.0353284,0.00016437,2]
[329579948,1718457055533,-155.01550155,0.00015,2]
[329579950,1718457055574,-772.18678966,0.0001642,2]
[329579952,1718457055599,-381.84452774,0.0001642,2]
[329579955,1718457055634,-6752.6942463,0.0001642,2]
[329579957,1718457055666,-25149.90178044,0.00016437,2]
[329579961,1718457055753,-4154.7911464,0.00016437,2]
[329579963,1718457055770,-3545.56,0.00016437,2]
[329580042,1718457057348,-1539.6369598,0.00016436,2]
[329580044,1718457057377,-412.0189015,0.00016436,2]
[329580360,1718457063973,-227.0,0.0002408,35]
[329580362,1718457064022,-150.5,0.0002408,35]
[329580365,1718457064067,-150.5,0.0002408,35]
[329580367,1718457064105,-359.0,0.0002408,35]
[329580370,1718457064157,-567.0,0.0002408,35]
[329580372,1718457064198,-347.0,0.0002408,35]
[329580375,1718457064247,-1604.0,0.0002408,35]
[329580390,1718457064566,-227.0,0.0002409,35]
[329580393,1718457064599,-27.0,0.0002409,35]
[329580402,1718457064715,-1208.12081208,0.00023811,30]
[329580406,1718457064758,-123.5,0.0002409,35]
[329580409,1718457064792,-150.5,0.0002409,35]
[329580411,1718457064825,-359.0,0.0002409,35]
[329580414,1718457064876,-567.0,0.0002409,35]
[329580415,1718457064913,-347.0,0.0002409,35]
[329580416,1718457064954,-1604.0,0.0002409,35]
[329580419,1718457064999,-227.0,0.000241,35]
[329580422,1718457065029,-150.5,0.000241,35]
[329580425,1718457065060,-150.5,0.000241,35]
[329580428,1718457065087,-359.0,0.000241,35]
[329580430,1718457065114,-567.0,0.000241,35]
[329580434,1718457065148,-347.0,0.000241,35]
[329580436,1718457065180,-1604.0,0.000241,35]
[329580437,1718457065207,-254.0,0.0002411,35]
[329580438,1718457065238,-41111.75837584,0.00024114,30]
[329580461,1718457164865,2124.01,0.00025,60]
[329580462,1718457185244,150.5,0.0002409,35]
[329580463,1718457185578,150.5,0.0002409,35]
[329580464,1718457185618,176.0,0.0002409,35]
[329580465,1718457185766,240.57,0.0002408,35]
[329580466,1718457186130,201.67,0.0002408,35]
[329580467,1718457186190,1123.0,0.0002409,35]
[329580468,1718457186243,176.0,0.0002408,35]
[329580469,1718457186793,1123.0,0.0002408,35]
[329580470,1718457191873,2000.0,0.00025,60]
[329580471,1718457204436,2000.0,0.00025,60]
[329580472,1718457214074,2000.0,0.00025,60]
[329580473,1718457281878,2000.0,0.00025,60]
[329580476,1718457305624,63.76,0.0002409,35]
[329580477,1718457306231,899.0,0.0002408,35]
[329580479,1718457319350,1000.0,0.00025,60]
[329580481,1718457426499,802.0,0.0002408,35]
[329580482,1718457546183,722.0,0.0002408,35]
[329580483,1718457578905,-155.01550155,9.227e-05,2]
[329580484,1718457578965,-155.01550155,9.228e-05,2]
[329580485,1718457579020,-157.0195297,9.229e-05,2]
[329580486,1718457579078,-42133.2060422,9.24e-05,2]
[329580487,1718457579113,-300.0,9.241e-05,2]
[329580488,1718457579144,-300.0,9.241e-05,2]
[329580489,1718457579193,-11105.83397635,9.241e-05,2]
[329580490,1718457579239,-16197.67171945,9.246e-05,2]
[329580491,1718457579297,-276.69312186,9.246e-05,2]
[329580492,1718457597574,292.19306968,9.246e-05,2]
[329580493,1718457605167,3997.64098857,9.246e-05,2]
[329580494,1718457605256,2096.53889493,9.246e-05,2]
[329580496,1718457617576,292.1227527,9.246e-05,2]
[329580497,1718457619316,2096.53889493,9.246e-05,2]
[329580498,1718457639182,444.51000653,9.246e-05,2]
[329580499,1718457665943,650.0,0.0002408,35]
[329580500,1718457907564,150.5,0.0002408,35]
[329580514,1718458102896,-411.86685665,9.043e-05,2]
[329580516,1718458103109,-58.60729982,9.044e-05,2]
[329580518,1718458137400,-2038.35365167,9.041e-05,2]
[329580519,1718458137446,-1282.86128703,9.042e-05,2]
[329580520,1718458137502,-410.88160417,9.043e-05,2]
[329580521,1718458137531,-123.54349681,9.044e-05,2]
[329580522,1718458137576,-36144.35996032,9.044e-05,2]
[329580893,1718458241445,-242.57106669,9.038e-05,2]
[329580895,1718458241500,-155.01550155,9.039e-05,2]
[329580897,1718458241514,-208.48799237,9.039e-05,2]
[329580899,1718458241527,-157.0195297,9.04e-05,2]
[329580902,1718458241561,-1668.40685988,9.04e-05,2]
[329580903,1718458241576,-9437.42711647,9.04e-05,2]
[329580905,1718458241588,-300.0,9.041e-05,2]
[329580907,1718458241613,-300.0,9.041e-05,2]
[329580909,1718458241637,-272.67145618,9.041e-05,2]
[329580912,1718458241673,-6984.21242072,9.041e-05,2]
[329580913,1718458241696,-3458.27234659,9.041e-05,2]
[329580916,1718458241739,-31690.72127489,9.041e-05,2]
[329580920,1718458241765,-1807.02718206,9.042e-05,2]
[329580924,1718458241784,-182.21223756,9.042e-05,2]
[329580927,1718458241798,-767.06463972,9.042e-05,2]
[329580928,1718458241815,-59622.46990411,9.042e-05,2]
[329580932,1718458241844,-292.19306968,9.044e-05,2]
[329580934,1718458241882,-16200.27458094,9.044e-05,2]
[329580936,1718458241899,-2096.53889493,9.044e-05,2]
[329580939,1718458241919,-19321.6008294,9.044e-05,2]
[329580941,1718458241938,-1114.23146943,9.047e-05,2]
[329580945,1718458241976,-24890.0,9.049e-05,2]
[329580950,1718458242033,-156.76753354,9.246e-05,2]
[329580951,1718458242044,-343.0,9.945e-05,2]
[329580953,1718458242058,-710.69250692,0.0001,2]
[329580954,1718458242081,-3296.9694459,0.00010068,2]
[329580956,1718458242094,-221.35449748,0.00011421,2]
[329580958,1718458242109,-524.64907675,0.00011518,2]
[329580960,1718458242156,-187.46396613,0.0001152,2]
[329580964,1718458242201,-185.22962416,0.00011522,2]
[329580966,1718458242216,-221.35449748,0.00012719,2]
[329580967,1718458242229,-3000.0,0.00013699,2]
[329580970,1718458242245,-498.181828,0.00013699,2]
[329580972,1718458242271,-221.35449748,0.00014017,2]
[329580974,1718458242294,-201.70044356,0.00015,2]
[329580976,1718458242318,-221.35449748,0.00015314,2]
[329580978,1718458242346,-6752.6942463,0.00016,2]
[329580980,1718458242358,-1124.09092791,0.00016,2]
[329580981,1718458242420,-211.709,0.00016012,2]
[329580983,1718458242432,-565.984,0.00016012,2]
[329580985,1718458242443,-155.0,0.0001616,2]
[329580987,1718458242455,-30366.80509284,0.00016258,2]
[329580989,1718458242467,-593.72555757,0.00016438,2]
[329580991,1718458242484,-500.0,0.00016438,2]
[329580993,1718458242496,-500.0,0.00016438,2]
[329580994,1718458242507,-500.0,0.00016438,2]
[329580997,1718458242524,-500.0,0.00016438,2]
[329580998,1718458242536,-500.0,0.00016438,2]
[329581000,1718458242557,-500.0,0.00016438,2]
[329581002,1718458242567,-741.59,0.00016438,2]
[329581004,1718458242601,-554.35,0.00016438,2]
[329581007,1718458242639,-500.0,0.00016438,2]
[329581009,1718458242651,-500.0,0.00016438,2]
[329581011,1718458242664,-500.0,0.00016438,2]
[329581012,1718458242694,-500.0,0.00016438,2]
[329581015,1718458242732,-500.0,0.00016438,2]
[329581017,1718458242749,-562.35,0.00016438,2]
[329581019,1718458242767,-503.41377771,0.00016438,2]
[329581022,1718458242782,-500.0,0.00016438,2]
[329581024,1718458242803,-500.0,0.00016438,2]
[329581026,1718458242830,-518.73,0.00016438,2]
[329581028,1718458242854,-500.0,0.00016438,2]
[329581030,1718458242872,-500.0,0.00016438,2]
[329581033,1718458242903,-465.79759591,0.00016438,2]
[329581035,1718458242954,-5362.02,0.00016438,2]
[329581038,1718458242986,-500.0,0.00016438,2]
[329581041,1718458243008,-500.0,0.00016438,2]
[329581043,1718458243051,-1230.26,0.00016438,2]
[329581045,1718458243066,-569.39,0.00016438,2]
[329581046,1718458243097,-500.0,0.00016438,2]
[329581048,1718458243109,-3540.95,0.00016438,2]
[329581049,1718458243122,-2713.58,0.00016438,2]
[329581051,1718458243184,-1221.2,0.00016438,2]
[329581054,1718458243228,-500.0,0.00016438,2]
[329581056,1718458243241,-1654.84,0.00016438,2]
[329581058,1718458243254,-500.0,0.00016438,2]
[329581060,1718458243274,-500.0,0.00016438,2]
[329581062,1718458243288,-500.0,0.00016438,2]
[329581063,1718458243310,-3944.7,0.00016438,2]
[329581065,1718458243323,-500.0,0.00016438,2]
[329581068,1718458243340,-1674.03,0.00016438,2]
[329581069,1718458243375,-500.0,0.00016438,2]
[329581073,1718458243402,-1191.65,0.00016438,2]
[329581077,1718458243426,-500.0,0.00016438,2]
[329581080,1718458243448,-500.0,0.00016438,2]
[329581083,1718458243465,-500.0,0.00016438,2]
[329581086,1718458243488,-500.0,0.00016438,2]
[329581088,1718458243523,-1116.28,0.00016438,2]
[329581091,1718458243561,-2128.29,0.00016438,2]
[329581093,1718458243577,-500.0,0.00016438,2]
[329581095,1718458243589,-500.0,0.00016438,2]
[329581096,1718458243602,-500.0,0.00016438,2]
[329581098,1718458243622,-195.05963546,0.00016438,2]
[329581100,1718458243635,-561.66272529,0.00016438,2]
[329581101,1718458243655,-1137.74,0.00016438,2]
[329581103,1718458243667,-500.0,0.00016438,2]